fUSD/lending_fUSD_20241224
["ID","MTS","AMOUNT","RATE_DAILY","PERIOD"]
[346512966,1735017090221,-1312.48,0.00015616,2]
[346512967,1735017090235,-500.0,0.00015616,2]
[346512968,1735017090249,-693.38,0.00015616,2]
[346512969,1735017090262,-895.42,0.00015616,2]
[346512970,1735017090274,-2714.59,0.00015616,2]
[346512971,1735017090285,-1034.79,0.00015616,2]
[346512972,1735017090296,-1494.15,0.00015616,2]
[346512973,1735017090308,-530.08,0.00015616,2]
[346512974,1735017090319,-970.92,0.00015616,2]
[346512975,1735017090330,-2028.23,0.00015616,2]
[346512976,1735017090342,-8065.04,0.00015616,2]
[346512977,1735017090354,-14022.51,0.00015616,2]
[346512978,1735017090365,-1858.88,0.00015616,2]
[346512979,1735017090376,-417.753861,0.00015616,2]
[346512980,1735017090387,-638.49,0.00015616,2]
[346512981,1735017090398,-1961.86,0.00015616,2]
[346512982,1735017090410,-470.967598,0.00015616,2]
[346512983,1735017090421,-1516.28,0.00015616,2]
[346512984,1735017090432,-500.0,0.00015616,2]
[346512985,1735017090443,-500.0,0.00015616,2]
[346512986,1735017090455,-2763.5,0.00015616,2]
[346512987,1735017090466,-595.96,0.00015616,2]
[346512988,1735017090478,-991.86,0.00015616,2]
[346512989,1735017090489,-1589.93,0.00015616,2]
[346512990,1735017090501,-2026.52,0.00015616,2]
[346512991,1735017090513,-841.8,0.00015616,2]
[346512992,1735017090524,-500.0,0.00015616,2]
[346512993,1735017090535,-1673.95,0.00015616,2]
[346512994,1735017090546,-704.95,0.00015616,2]
[346512995,1735017090561,-881.88,0.00015616,2]
[346512996,1735017090572,-947.94,0.00015616,2]
[346512997,1735017090583,-1132.27,0.00015616,2]
[346512998,1735017090596,-1217.14,0.00015616,2]
[346512999,1735017090607,-527.89,0.00015616,2]
[346513000,1735017090619,-500.0,0.00015616,2]
[346513001,1735017090630,-1554.58,0.00015616,2]
[346513002,1735017090643,-1554.93,0.00015616,2]
[346513003,1735017090654,-783.81,0.00015616,2]
[346513004,1735017090665,-8937.01,0.00015616,2]
[346513005,1735017090677,-1595.12,0.00015616,2]
[346513006,1735017090688,-1043.93,0.00015616,2]
[346513007,1735017090699,-820.47,0.00015616,2]
[346513008,1735017090711,-570.88,0.00015616,2]
[346513009,1735017090722,-3160.1,0.00015616,2]
[346513010,1735017090733,-2812.48,0.00015616,2]
[346513011,1735017090745,-1278.73,0.00015616,2]
[346513012,1735017090756,-500.0,0.00015616,2]
[346513013,1735017090768,-2713.57,0.00015616,2]
[346513014,1735017090779,-708.16,0.00015616,2]
[346513015,1735017090791,-2055.84,0.00015616,2]
[346513016,1735017090802,-500.0,0.00015616,2]
[346513017,1735017090813,-1461.32,0.00015616,2]
[346513018,1735017090824,-1831.86,0.00015616,2]
[346513019,1735017090836,-5286.14,0.00015616,2]
[346513020,1735017090848,-500.0,0.00015616,2]
[346513021,1735017090860,-2687.24,0.00015616,2]
[346513022,1735017090871,-929.6,0.00015616,2]
[346513023,1735017090883,-1334.92,0.00015616,2]
[346513024,1735017090894,-599.85,0.00015616,2]
[346513025,1735017090905,-500.0,0.00015616,2]
[346513026,1735017090917,-6644.58,0.00015616,2]
[346513027,1735017090928,-2084.05,0.00015616,2]
[346513028,1735017090939,-1574.04,0.00015616,2]
[346513029,1735017090950,-500.0,0.00015616,2]
[346513030,1735017090962,-521.4,0.00015616,2]
[346513031,1735017090973,-221.06,0.00015616,2]
[346513032,1735017090984,-1759.16,0.00015616,2]
[346513033,1735017090997,-5396.91,0.00015616,2]
[346513034,1735017091009,-5068.92,0.00015616,2]
[346513035,1735017091020,-2140.51,0.00015616,2]
[346513036,1735017091032,-1218.27,0.00015616,2]
[346513037,1735017091044,-1094.07,0.00015616,2]
[346513038,1735017091055,-10243.1,0.00015616,2]
[346513039,1735017091067,-500.0,0.00015616,2]
[346513040,1735017091077,-721.28,0.00015616,2]
[346513041,1735017091088,-5625.96,0.00015616,2]
[346513042,1735017091099,-1216.52,0.00015616,2]
[346513043,1735017091111,-790.49,0.00015616,2]
[346513044,1735017091122,-500.0,0.00015616,2]
[346513045,1735017091133,-653.69,0.00015616,2]
[346513046,1735017091144,-506.69,0.00015616,2]
[346513047,1735017091156,-500.0,0.00015616,2]
[346513048,1735017091166,-2281.06,0.00015616,2]
[346513049,1735017091176,-500.0,0.00015616,2]
[346513050,1735017091188,-500.0,0.00015616,2]
[346513051,1735017091199,-500.0,0.00015616,2]
[346513052,1735017091211,-1025.3,0.00015616,2]
[346513053,1735017091222,-500.0,0.00015616,2]
[346513054,1735017091233,-3534.91,0.00015616,2]
[346513055,1735017091244,-1884.7,0.00015616,2]
[346513056,1735017091255,-1009.93,0.00015616,2]
[346513057,1735017091266,-747.18,0.00015616,2]
[346513058,1735017091278,-1487.41,0.00015616,2]
[346513059,1735017091290,-1157.43,0.00015616,2]
[346513060,1735017091300,-1148.68,0.00015616,2]
[346513061,1735017091311,-574.67,0.00015616,2]
[346513062,1735017091323,-520.9,0.00015616,2]
[346513063,1735017091334,-1366.93,0.00015616,2]
[346513064,1735017091345,-1321.6,0.00015616,2]
[346513065,1735017091356,-500.0,0.00015616,2]
[346513066,1735017091367,-3473.97,0.00015616,2]
[346513067,1735017091378,-2009.91,0.00015616,2]
[346513068,1735017091389,-1834.74,0.00015616,2]
[346513069,1735017091399,-12237.72,0.00015616,2]
[346513070,1735017091411,-1429.03,0.00015616,2]
[346513071,1735017091422,-500.0,0.00015616,2]
[346513072,1735017091433,-3213.22,0.00015616,2]
[346513073,1735017091444,-926.41,0.00015616,2]
[346513074,1735017091455,-669.32,0.00015616,2]
[346513075,1735017091466,-1000.0,0.00015729,2]
[346513076,1735017091477,-359.12,0.0001581,2]
[346513077,1735017091488,-949.2114194,0.00015888,7]
[346513078,1735017091499,-500.0,0.0001589,2]
[346513079,1735017091510,-373.6,0.0001589,2]
[346513080,1735017091522,-500.0,0.0001589,2]
[346513081,1735017091532,-557.785434,0.0001589,2]
[346513082,1735017091543,-500.0,0.0001589,2]
[346513083,1735017091555,-664.615719,0.0001589,2]
[346513084,1735017091568,-257.12254198,0.0001589,2]
[346513085,1735017091580,-500.0,0.0001589,2]
[346513086,1735017091590,-500.0,0.0001589,2]
[346513087,1735017091602,-500.0,0.0001589,2]
[346513088,1735017091613,-500.0,0.0001589,2]
[346513089,1735017091624,-500.0,0.0001589,2]
[346513090,1735017091635,-500.0,0.0001589,2]
[346513091,1735017091646,-656.66,0.0001589,2]
[346513092,1735017091656,-547.42,0.0001589,2]
[346513093,1735017091667,-500.0,0.0001589,2]
[346513094,1735017091679,-500.0,0.0001589,2]
[346513095,1735017091690,-500.0,0.0001589,2]
[346513096,1735017091701,-728.94,0.0001589,2]
[346513097,1735017091712,-559.81,0.0001589,2]
[346513098,1735017091723,-500.0,0.0001589,2]
[346513099,1735017091734,-500.0,0.0001589,2]
[346513100,1735017091746,-500.0,0.0001589,2]
[346513101,1735017091758,-303.41188369,0.0001589,2]
[346513102,1735017091768,-556.14,0.0001589,2]
[346513103,1735017091780,-922.02,0.0001589,2]
[346513104,1735017091791,-660.38,0.0001589,2]
[346513105,1735017091802,-719.55,0.0001589,2]
[346513106,1735017091814,-500.0,0.0001589,2]
[346513107,1735017091825,-500.0,0.0001589,2]
[346513108,1735017091837,-500.0,0.0001589,2]
[346513109,1735017091849,-847.72,0.0001589,2]
[346513110,1735017091860,-500.0,0.0001589,2]
[346513111,1735017091871,-803.4,0.0001589,2]
[346513112,1735017091882,-500.0,0.0001589,2]
[346513113,1735017091894,-500.0,0.0001589,2]
[346513114,1735017091906,-500.0,0.0001589,2]
[346513115,1735017091918,-500.0,0.0001589,2]
[346513116,1735017091930,-500.0,0.0001589,2]
[346513117,1735017091945,-500.0,0.0001589,2]
[346513118,1735017091956,-500.0,0.0001589,2]
[346513119,1735017091968,-500.0,0.0001589,2]
[346513120,1735017091979,-500.0,0.0001589,2]
[346513121,1735017091990,-639.75,0.0001589,2]
[346513122,1735017092002,-272.34002338,0.0001589,2]
[346513123,1735017092014,-2089.39,0.0001589,2]
[346513124,1735017092025,-739.91,0.0001589,2]
[346513125,1735017092036,-500.0,0.0001589,2]
[346513126,1735017092047,-624.60352671,0.0001589,2]
[346513127,1735017092059,-500.0,0.0001589,2]
[346513128,1735017092071,-500.0,0.0001589,2]
[346513129,1735017092082,-605.17,0.0001589,2]
[346513130,1735017092093,-815.06,0.0001589,2]
[346513131,1735017092105,-500.0,0.0001589,2]
[346513132,1735017092116,-500.0,0.0001589,2]
[346513133,1735017092127,-500.0,0.0001589,2]
[346513134,1735017092138,-699.59,0.0001589,2]
[346513135,1735017092149,-500.0,0.0001589,2]
[346513136,1735017092160,-1038.23,0.0001589,2]
[346513137,1735017092171,-500.0,0.0001589,2]
[346513138,1735017092182,-500.0,0.0001589,2]
[346513139,1735017092193,-500.0,0.0001589,2]
[346513140,1735017092204,-928.44,0.0001589,2]
[346513141,1735017092215,-205.69,0.0001589,2]
[346513142,1735017092227,-500.0,0.0001589,2]
[346513143,1735017092238,-628.43,0.0001589,2]
[346513144,1735017092250,-1245.64,0.0001589,2]
[346513145,1735017092263,-500.0,0.0001589,2]
[346513146,1735017092274,-516.41,0.0001589,2]
[346513147,1735017092285,-297.45,0.0001589,2]
[346513148,1735017092296,-500.0,0.0001589,2]
[346513149,1735017092308,-539.73,0.0001589,2]
[346513150,1735017092319,-859.05,0.0001589,2]
[346513151,1735017092330,-177.25,0.0001589,2]
[346513152,1735017092341,-500.0,0.0001589,2]
[346513153,1735017092353,-411.6,0.0001589,2]
[346513154,1735017092364,-500.0,0.0001589,2]
[346513155,1735017092375,-500.0,0.0001589,2]
[346513156,1735017092386,-249.83576368,0.0001589,2]
[346513157,1735017092397,-500.0,0.0001589,2]
[346513158,1735017092409,-500.0,0.0001589,2]
[346513159,1735017092421,-500.0,0.0001589,2]
[346513160,1735017092433,-500.0,0.0001589,2]
[346513161,1735017092444,-500.0,0.0001589,2]
[346513162,1735017092456,-270.58,0.0001589,2]
[346513163,1735017092467,-589.52,0.0001589,2]
[346513164,1735017092478,-320.07,0.0001589,2]
[346513165,1735017092489,-500.0,0.0001589,2]
[346513166,1735017092502,-524.33,0.0001589,2]
[346513167,1735017092514,-500.0,0.0001589,2]
[346513168,1735017092526,-500.0,0.0001589,2]
[346513169,1735017092538,-500.0,0.0001589,2]
[346513170,1735017092549,-500.0,0.0001589,2]
[346513171,1735017092564,-500.0,0.0001589,2]
[346513172,1735017092575,-500.0,0.0001589,2]
[346513173,1735017092587,-224.82,0.0001589,2]
[346513174,1735017092599,-500.0,0.0001589,2]
[346513175,1735017092610,-958.18,0.0001589,2]
[346513176,1735017092622,-500.0,0.0001589,2]
[346513177,1735017092634,-500.0,0.0001589,2]
[346513178,1735017092645,-500.0,0.0001589,2]
[346513179,1735017092656,-500.0,0.0001589,2]
[346513180,1735017093032,-500.0,0.0001589,2]
[346513181,1735017093046,-537.25,0.0001589,2]
[346513182,1735017093056,-1121.59,0.0001589,2]
[346513183,1735017093065,-500.0,0.0001589,2]
[346513184,1735017093075,-556.54,0.0001589,2]
[346513185,1735017093084,-500.0,0.0001589,2]
[346513186,1735017093094,-500.0,0.0001589,2]
[346513187,1735017093104,-643.69,0.0001589,2]
[346513188,1735017093113,-500.0,0.0001589,2]
[346513189,1735017093123,-561.23,0.0001589,2]
[346513190,1735017093133,-500.0,0.0001589,2]
[346513191,1735017093142,-915.52,0.0001589,2]
[346513192,1735017093151,-500.0,0.0001589,2]
[346513193,1735017093160,-876.14,0.0001589,2]
[346513194,1735017093170,-500.0,0.0001589,2]
[346513195,1735017093179,-500.0,0.0001589,2]
[346513196,1735017093189,-500.0,0.0001589,2]
[346513197,1735017093198,-500.0,0.0001589,2]
[346513198,1735017093208,-500.0,0.0001589,2]
[346513199,1735017093217,-500.0,0.0001589,2]
[346513200,1735017093226,-536.36,0.0001589,2]
[346513201,1735017093236,-1568.06,0.0001589,2]
[346513202,1735017093246,-528.87,0.0001589,2]
[346513203,1735017093254,-790.82,0.0001589,2]
[346513204,1735017093264,-500.0,0.0001589,2]
[346513205,1735017093273,-500.0,0.0001589,2]
[346513206,1735017093282,-824.42,0.0001589,2]
[346513207,1735017093291,-1098.82,0.0001589,2]
[346513208,1735017093300,-500.0,0.0001589,2]
[346513209,1735017093310,-745.24,0.0001589,2]
[346513210,1735017093319,-500.0,0.0001589,2]
[346513211,1735017093329,-500.0,0.0001589,2]
[346513212,1735017093338,-500.0,0.0001589,2]
[346513213,1735017093348,-1414.48,0.0001589,2]
[346513214,1735017093357,-500.0,0.0001589,2]
[346513215,1735017093367,-500.0,0.0001589,2]
[346513216,1735017093376,-500.0,0.0001589,2]
[346513217,1735017093385,-500.0,0.0001589,2]
[346513218,1735017093395,-1084.53,0.0001589,2]
[346513219,1735017093405,-666.79,0.0001589,2]
[346513220,1735017093414,-500.0,0.0001589,2]
[346513221,1735017093423,-1900.45,0.0001589,2]
[346513222,1735017093432,-1378.72,0.0001589,2]
[346513223,1735017093441,-767.26,0.0001589,2]
[346513224,1735017093451,-3033.38,0.0001589,2]
[346513225,1735017093460,-500.0,0.0001589,2]
[346513226,1735017093470,-2055.63,0.0001589,2]
[346513227,1735017093479,-500.0,0.0001589,2]
[346513228,1735017093488,-1125.23,0.0001589,2]
[346513229,1735017093499,-500.0,0.0001589,2]
[346513230,1735017093508,-500.0,0.0001589,2]
[346513231,1735017093518,-500.0,0.0001589,2]
[346513232,1735017093527,-612.69,0.0001589,2]
[346513233,1735017093536,-500.0,0.0001589,2]
[346513234,1735017093545,-500.0,0.0001589,2]
[346513235,1735017093556,-500.0,0.0001589,2]
[346513236,1735017093567,-500.0,0.0001589,2]
[346513237,1735017093575,-500.0,0.0001589,2]
[346513238,1735017093585,-516.38,0.0001589,2]
[346513239,1735017093594,-500.0,0.0001589,2]
[346513240,1735017093603,-500.0,0.0001589,2]
[346513241,1735017093613,-500.0,0.0001589,2]
[346513242,1735017093623,-764.84,0.0001589,2]
[346513243,1735017093632,-500.0,0.0001589,2]
[346513244,1735017093642,-500.0,0.0001589,2]
[346513245,1735017093652,-500.0,0.0001589,2]
[346513246,1735017093661,-1499.77,0.0001589,2]
[346513247,1735017093671,-500.0,0.0001589,2]
[346513248,1735017093681,-1598.59,0.0001589,2]
[346513249,1735017093690,-500.0,0.0001589,2]
[346513250,1735017093699,-500.0,0.0001589,2]
[346513251,1735017093708,-1242.36,0.0001589,2]
[346513252,1735017093718,-559.25,0.0001589,2]
[346513253,1735017093727,-881.82,0.0001589,2]
[346513254,1735017093737,-500.0,0.0001589,2]
[346513255,1735017093746,-736.96,0.0001589,2]
[346513256,1735017093756,-500.0,0.0001589,2]
[346513257,1735017093766,-500.0,0.0001589,2]
[346513258,1735017093775,-632.45,0.0001589,2]
[346513259,1735017093784,-500.0,0.0001589,2]
[346513260,1735017093793,-500.0,0.0001589,2]
[346513261,1735017093803,-500.0,0.0001589,2]
[346513262,1735017093812,-500.0,0.0001589,2]
[346513263,1735017093822,-283.48408908,0.0001589,2]
[346513264,1735017093831,-584.48,0.0001589,2]
[346513265,1735017093840,-500.0,0.0001589,2]
[346513266,1735017093850,-734.02,0.0001589,2]
[346513267,1735017093859,-1243.83,0.0001589,2]
[346513268,1735017093869,-607.12,0.0001589,2]
[346513269,1735017093879,-500.0,0.0001589,2]
[346513270,1735017093888,-698.02,0.0001589,2]
[346513271,1735017093898,-500.0,0.0001589,2]
[346513272,1735017093908,-500.0,0.0001589,2]
[346513273,1735017093918,-500.0,0.0001589,2]
[346513274,1735017093928,-500.0,0.0001589,2]
[346513275,1735017093938,-1517.51,0.0001589,2]
[346513276,1735017093947,-2185.96,0.0001589,2]
[346513277,1735017093957,-500.0,0.0001589,2]
[346513278,1735017093967,-1895.65,0.0001589,2]
[346513279,1735017093977,-500.0,0.0001589,2]
[346513280,1735017093987,-524.51,0.0001589,2]
[346513281,1735017093997,-500.0,0.0001589,2]
[346513282,1735017094007,-1341.35,0.0001589,2]
[346513283,1735017094017,-1146.95,0.0001589,2]
[346513284,1735017094026,-500.0,0.0001589,2]
[346513285,1735017094036,-847.15,0.0001589,2]
[346513286,1735017094045,-804.88,0.0001589,2]
[346513287,1735017094055,-845.49,0.0001589,2]
[346513288,1735017094064,-500.0,0.0001589,2]
[346513289,1735017094074,-512.15,0.0001589,2]
[346513290,1735017094083,-728.57,0.0001589,2]
[346513291,1735017094092,-500.0,0.0001589,2]
[346513292,1735017094102,-500.0,0.0001589,2]
[346513293,1735017094111,-953.52,0.0001589,2]
[346513294,1735017094121,-500.0,0.0001589,2]
[346513295,1735017094130,-1722.6,0.0001589,2]
[346513296,1735017094140,-1169.18,0.0001589,2]
[346513297,1735017094150,-967.22,0.0001589,2]
[346513298,1735017094159,-970.63,0.0001589,2]
[346513299,1735017094168,-682.34,0.0001589,2]
[346513300,1735017094178,-1186.53,0.0001589,2]
[346513301,1735017094188,-2751.61,0.0001589,2]
[346513302,1735017094198,-516.04,0.0001589,2]
[346513303,1735017094207,-8307.43,0.0001589,2]
[346513304,1735017094217,-951.65,0.0001589,2]
[346513305,1735017094227,-838.55,0.0001589,2]
[346513306,1735017094236,-1312.48,0.0001589,2]
[346513307,1735017094246,-693.38,0.0001589,2]
[346513308,1735017094256,-895.42,0.0001589,2]
[346513309,1735017094266,-2714.59,0.0001589,2]
[346513310,1735017094275,-1034.79,0.0001589,2]
[346513311,1735017094285,-1494.15,0.0001589,2]
[346513312,1735017094295,-530.08,0.0001589,2]
[346513313,1735017094304,-970.92,0.0001589,2]
[346513314,1735017094314,-2028.23,0.0001589,2]
[346513315,1735017094323,-8065.04,0.0001589,2]
[346513316,1735017094332,-14022.51,0.0001589,2]
[346513317,1735017094342,-1858.88,0.0001589,2]
[346513318,1735017094351,-417.753861,0.0001589,2]
[346513319,1735017094361,-638.49,0.0001589,2]
[346513320,1735017094371,-1961.86,0.0001589,2]
[346513321,1735017094381,-470.967598,0.0001589,2]
[346513322,1735017094390,-1516.28,0.0001589,2]
[346513323,1735017094400,-500.0,0.0001589,2]
[346513324,1735017094409,-500.0,0.0001589,2]
[346513325,1735017094418,-2763.5,0.0001589,2]
[346513326,1735017094428,-595.96,0.0001589,2]
[346513327,1735017094438,-991.86,0.0001589,2]
[346513328,1735017094448,-1589.93,0.0001589,2]
[346513329,1735017094458,-2026.52,0.0001589,2]
[346513330,1735017094467,-841.8,0.0001589,2]
[346513331,1735017094477,-500.0,0.0001589,2]
[346513332,1735017094487,-1673.95,0.0001589,2]
[346513333,1735017094498,-704.95,0.0001589,2]
[346513334,1735017094508,-881.88,0.0001589,2]
[346513335,1735017094518,-947.94,0.0001589,2]
[346513336,1735017094528,-1132.27,0.0001589,2]
[346513337,1735017094538,-1217.14,0.0001589,2]
[346513338,1735017094548,-527.89,0.0001589,2]
[346513339,1735017094560,-500.0,0.0001589,2]
[346513340,1735017094570,-1554.58,0.0001589,2]
[346513341,1735017094580,-1554.93,0.0001589,2]
[346513342,1735017094590,-783.81,0.0001589,2]
[346513343,1735017094600,-8937.01,0.0001589,2]
[346513344,1735017094610,-1595.12,0.0001589,2]
[346513345,1735017094620,-1043.93,0.0001589,2]
[346513346,1735017094630,-820.47,0.0001589,2]
[346513347,1735017094642,-570.88,0.0001589,2]
[346513348,1735017094653,-3160.1,0.0001589,2]
[346513349,1735017094662,-2812.48,0.0001589,2]
[346513350,1735017094672,-1278.73,0.0001589,2]
[346513351,1735017094683,-500.0,0.0001589,2]
[346513352,1735017094693,-2713.57,0.0001589,2]
[346513353,1735017094703,-708.16,0.0001589,2]
[346513354,1735017094712,-2055.84,0.0001589,2]
[346513355,1735017094722,-500.0,0.0001589,2]
[346513356,1735017094732,-1461.32,0.0001589,2]
[346513357,1735017094742,-1831.86,0.0001589,2]
[346513358,1735017094754,-5286.14,0.0001589,2]
[346513359,1735017094763,-500.0,0.0001589,2]
[346513360,1735017094773,-2687.24,0.0001589,2]
[346513361,1735017094783,-929.6,0.0001589,2]
[346513362,1735017094792,-1334.92,0.0001589,2]
[346513363,1735017094802,-599.85,0.0001589,2]
[346513364,1735017094812,-325.40965458,0.0001589,2]
[346513365,1735017094822,-6644.58,0.0001589,2]
[346513366,1735017094831,-2084.05,0.0001589,2]
[346513367,1735017094842,-1574.04,0.0001589,2]
[346513368,1735017094851,-186.31,0.0001589,2]
[346513369,1735017094861,-521.4,0.0001589,2]
[346513370,1735017094871,-1759.16,0.0001589,2]
[346513371,1735017094881,-5396.91,0.0001589,2]
[346513372,1735017094890,-5068.92,0.0001589,2]
[346513373,1735017094900,-2140.51,0.0001589,2]
[346513374,1735017094910,-1218.27,0.0001589,2]
[346513375,1735017094920,-1094.07,0.0001589,2]
[346513376,1735017094930,-10243.1,0.0001589,2]
[346513377,1735017094940,-500.0,0.0001589,2]
[346513378,1735017094950,-721.28,0.0001589,2]
[346513379,1735017094959,-5625.96,0.0001589,2]
[346513380,1735017094969,-1216.52,0.0001589,2]
[346513381,1735017094979,-790.49,0.0001589,2]
[346513382,1735017094989,-500.0,0.0001589,2]
[346513383,1735017094999,-653.69,0.0001589,2]
[346513384,1735017095010,-506.69,0.0001589,2]
[346513385,1735017095020,-500.0,0.0001589,2]
[346513386,1735017095030,-2281.06,0.0001589,2]
[346513387,1735017095039,-500.0,0.0001589,2]
[346513388,1735017095049,-500.0,0.0001589,2]
[346513389,1735017095059,-500.0,0.0001589,2]
[346513390,1735017095068,-1025.3,0.0001589,2]
[346513391,1735017095078,-500.0,0.0001589,2]
[346513392,1735017095088,-3534.91,0.0001589,2]
[346513393,1735017095097,-1884.7,0.0001589,2]
[346513394,1735017095107,-1009.93,0.0001589,2]
[346513395,1735017095117,-747.18,0.0001589,2]
[346513396,1735017095127,-1487.41,0.0001589,2]
[346513397,1735017095136,-1157.43,0.0001589,2]
[346513398,1735017095145,-1148.68,0.0001589,2]
[346513399,1735017095154,-574.67,0.0001589,2]
[346513400,1735017095164,-520.9,0.0001589,2]
[346513401,1735017095174,-1366.93,0.0001589,2]
[346513402,1735017095183,-1321.6,0.0001589,2]
[346513403,1735017095193,-500.0,0.0001589,2]
[346513404,1735017095202,-3473.97,0.0001589,2]
[346513405,1735017095212,-2009.91,0.0001589,2]
[346513406,1735017095221,-1834.74,0.0001589,2]
[346513407,1735017095231,-12237.72,0.0001589,2]
[346513408,1735017095240,-1429.03,0.0001589,2]
[346513409,1735017095251,-500.0,0.0001589,2]
[346513410,1735017095260,-3213.22,0.0001589,2]
[346513411,1735017095270,-926.41,0.0001589,2]
[346513412,1735017095279,-200.0,0.000159,5]
[346513413,1735017095289,-50000.0,0.00016,2]
[346513414,1735017095298,-3867.790939,0.00016,2]
[346513415,1735017095307,-500.0,0.00016164,2]
[346513416,1735017095317,-403.77,0.00016164,2]
[346513417,1735017095326,-557.785434,0.00016164,2]
[346513418,1735017095336,-191.27671619,0.00016164,2]
[346513419,1735017095345,-664.615719,0.00016164,2]
[346513420,1735017095354,-369.28283553,0.00016164,2]
[346513421,1735017095363,-500.0,0.00016164,2]
[346513422,1735017095372,-419.60983412,0.00016164,2]
[346513423,1735017095382,-500.0,0.00016164,2]
[346513424,1735017095391,-500.0,0.00016164,2]
[346513425,1735017095400,-500.0,0.00016164,2]
[346513426,1735017095410,-656.66,0.00016164,2]
[346513427,1735017095419,-547.42,0.00016164,2]
[346513428,1735017095428,-500.0,0.00016164,2]
[346513429,1735017095438,-500.0,0.00016164,2]
[346513430,1735017095447,-560.76649287,0.00016164,2]
[346513431,1735017095456,-728.94,0.00016164,2]
[346513432,1735017095466,-559.81,0.00016164,2]
[346513433,1735017095475,-500.0,0.00016164,2]
[346513434,1735017095484,-500.0,0.00016164,2]
[346513435,1735017095494,-500.0,0.00016164,2]
[346513436,1735017095504,-556.14,0.00016164,2]
[346513437,1735017095514,-922.02,0.00016164,2]
[346513438,1735017095523,-660.38,0.00016164,2]
[346513439,1735017095532,-719.55,0.00016164,2]
[346513440,1735017095542,-500.0,0.00016164,2]
[346513441,1735017095552,-500.0,0.00016164,2]
[346513442,1735017095566,-500.0,0.00016164,2]
[346513443,1735017095576,-847.72,0.00016164,2]
[346513444,1735017095585,-500.0,0.00016164,2]
[346513445,1735017095595,-803.4,0.00016164,2]
[346513446,1735017095605,-500.0,0.00016164,2]
[346513447,1735017095614,-500.0,0.00016164,2]
[346513448,1735017095624,-500.0,0.00016164,2]
[346513449,1735017095634,-500.0,0.00016164,2]
[346513450,1735017095643,-500.0,0.00016164,2]
[346513451,1735017095653,-500.0,0.00016164,2]
[346513452,1735017095663,-500.0,0.00016164,2]
[346513453,1735017095825,-500.0,0.00016164,2]
[346513454,1735017095865,-388.88,0.00016164,2]
[346513455,1735017095876,-639.75,0.00016164,2]
[346513456,1735017095886,-2089.39,0.00016164,2]
[346513457,1735017095896,-739.91,0.00016164,2]
[346513458,1735017095906,-500.0,0.00016164,2]
[346513459,1735017095916,-500.0,0.00016164,2]
[346513460,1735017095926,-500.0,0.00016164,2]
[346513461,1735017095935,-605.17,0.00016164,2]
[346513462,1735017095946,-815.06,0.00016164,2]
[346513463,1735017095955,-500.0,0.00016164,2]
[346513464,1735017095965,-500.0,0.00016164,2]
[346513465,1735017095976,-434.20059212,0.00016164,2]